bitfinex/quotes_BTCUSD_20241128
["timestamp","ask_amount","ask_price","bid_price","bid_amount"]
[1732820168402,0.0008618,95370.0,95369.0,0.40447413]
[1732820170002,0.0008618,95370.0,95369.0,0.40447453]
[1732820170249,0.0008618,95370.0,95369.0,0.82052306]
[1732820170712,0.0008618,95370.0,95369.0,0.83619127]
[1732820172118,0.0008618,95370.0,95369.0,0.83613378]
[1732820172561,0.0008618,95370.0,95369.0,0.80076957]
[1732820172786,0.0008618,95370.0,95369.0,0.83611036]
[1732820173688,0.0008618,95370.0,95369.0,0.82044654]
[1732820174363,0.0008618,95370.0,95369.0,0.83611001]
[1732820174567,0.0008618,95370.0,95369.0,0.82044654]
[1732820175449,0.0008618,95370.0,95369.0,0.83610947]
[1732820176325,0.0008618,95370.0,95369.0,0.82044654]
[1732820177223,0.0008618,95370.0,95369.0,0.79027434]
[1732820177726,0.0008618,95370.0,95369.0,0.37430074]
[1732820178356,0.0008618,95370.0,95369.0,0.40447294]
[1732820179229,0.0008618,95370.0,95369.0,0.82050014]
[1732820179566,0.0008618,95370.0,95369.0,0.40447294]
[1732820180388,0.0099962,95391.0,95385.0,0.153537]
[1732820180607,0.0099962,95391.0,95390.0,0.23474728]
[1732820180818,0.104829,95393.0,95390.0,0.24130645]
[1732820181044,0.15,95394.0,95391.0,0.00655917]
[1732820181266,0.10483,95392.0,95390.0,0.23474728]
[1732820181708,0.004,95391.0,95390.0,0.23474728]
[1732820181941,0.004,95391.0,95390.0,0.24130612]
[1732820182180,0.002,95391.0,95390.0,0.24130612]
[1732820182601,0.002,95391.0,95390.0,0.23474728]
[1732820182838,0.003,95392.0,95390.0,0.23474728]
[1732820183285,0.003,95392.0,95389.0,0.23474728]
[1732820183731,0.002,95391.0,95390.0,0.33957928]
[1732820183952,0.002,95391.0,95390.0,0.11139082]
[1732820184186,0.003,95392.0,95391.0,0.104831]
[1732820184401,0.005,95392.0,95391.0,0.33952118]
[1732820184609,0.003,95392.0,95391.0,0.33952118]
[1732820184829,0.003,95392.0,95391.0,0.104831]
[1732820185044,0.104822,95400.0,95392.0,0.209661]
[1732820185259,0.209634,95404.0,95398.0,0.14079226]
[1732820185260,0.104822,95399.0,95398.0,0.14079226]
[1732820187780,0.105822,95399.0,95398.0,0.14079226]
[1732820188004,0.105822,95399.0,95398.0,0.14076235]
[1732820191130,0.105822,95399.0,95398.0,0.13764385]
[1732820193226,0.105822,95399.0,95396.0,0.18768314]
[1732820193227,0.210646,95399.0,95396.0,0.18769199]
[1732820193447,0.104825,95397.0,95396.0,0.18769199]
[1732820193898,0.2115079,95399.0,95396.0,0.18769199]
[1732820194124,0.104824,95398.0,95396.0,0.18769199]
[1732820194568,0.104825,95397.0,95396.0,0.18769199]
[1732820194788,0.104825,95397.0,95396.0,0.18869199]
[1732820195259,0.1058696,95399.0,95396.0,0.18869199]
[1732820195741,0.0010466,95399.0,95397.0,0.18769199]
[1732820196393,0.0010466,95399.0,95398.0,0.104824]
[1732820196624,0.0010466,95399.0,95398.0,0.29251599]
[1732820197045,0.0010466,95399.0,95398.0,0.104824]
[1732820197252,0.0010466,95399.0,95398.0,0.34599737]
[1732820197468,0.0010466,95399.0,95398.0,0.00655838]
[1732820197677,0.0010466,95399.0,95398.0,0.11388291]
[1732820197887,0.0010466,95399.0,95398.0,0.16348291]
[1732820198138,0.0020466,95399.0,95398.0,0.17397532]
[1732820198795,0.0010466,95399.0,95398.0,0.17397532]
[1732820200217,0.0010466,95399.0,95398.0,0.45533747]
[1732820200456,0.0010466,95399.0,95398.0,0.46033747]
[1732820200676,0.0010466,95399.0,95398.0,0.17897532]
[1732820201105,0.0010466,95399.0,95398.0,0.46035206]
[1732820201536,0.0010466,95399.0,95398.0,0.44985965]
[1732820204046,0.0010466,95399.0,95398.0,0.44985883]
[1732820204258,0.0010466,95399.0,95398.0,0.16848209]
[1732820204780,0.0010466,95399.0,95398.0,0.44985883]
[1732820205268,0.0010466,95399.0,95398.0,0.16848209]
[1732820205528,0.0010466,95399.0,95398.0,0.44985883]
[1732820205995,0.0010466,95399.0,95398.0,0.45158203]
[1732820206232,0.0010466,95399.0,95398.0,0.17020529]
[1732820206448,0.0010466,95399.0,95398.0,0.45158203]
[1732820207706,0.0010466,95399.0,95398.0,0.46207412]
[1732820210277,0.0010466,95399.0,95398.0,0.18069738]
[1732820211115,0.0010466,95399.0,95398.0,0.46208106]
[1732820211320,0.0010466,95399.0,95398.0,0.18069738]
[1732820217144,0.0010466,95399.0,95398.0,0.19381248]
[1732820217567,0.0010466,95399.0,95398.0,0.16364773]
[1732820217779,0.0010466,95399.0,95398.0,0.17676282]
[1732820217981,0.0010466,95399.0,95398.0,0.18987792]
[1732820218260,0.0010466,95399.0,95398.0,0.20037]
[1732820218696,0.0010466,95399.0,95398.0,0.19381246]
[1732820220453,0.0010466,95399.0,95398.0,0.29665767]
[1732820221353,0.0010466,95399.0,95398.0,0.30665767]
[1732820223761,0.0010466,95399.0,95398.0,0.38875767]
[1732820223985,0.0008614,95414.0,95413.0,0.15380753]
[1732820224204,0.0008614,95414.0,95413.0,0.18397045]
[1732820224406,0.0008614,95414.0,95413.0,0.17085716]
[1732820224643,0.0008614,95414.0,95413.0,0.18397061]
[1732820225087,0.0008614,95414.0,95413.0,0.18396814]
[1732820226423,0.0008614,95414.0,95413.0,0.18582301]
[1732820226649,0.0008614,95414.0,95413.0,0.1616624]
[1732820226847,0.0008614,95414.0,95413.0,0.19182299]
[1732820227270,0.0008614,95414.0,95413.0,0.19382298]
[1732820227521,0.0008614,95414.0,95413.0,0.29666819]
[1732820227703,0.0008614,95414.0,95413.0,0.29481333]
[1732820229228,0.0008614,95414.0,95413.0,0.08716112]
[1732820229900,0.0008614,95414.0,95413.0,0.19196812]
[1732820230137,0.0008614,95414.0,95413.0,0.1919678]
[1732820230370,0.0008614,95414.0,95413.0,0.36263751]
[1732820230586,0.0008614,95414.0,95413.0,0.06604764]
[1732820230798,0.0008614,95414.0,95413.0,0.18596803]
[1732820231000,0.0008614,95414.0,95413.0,0.03466103]
[1732820231449,0.0008614,95414.0,95413.0,0.02154764]
[1732820232095,0.0008614,95414.0,95413.0,0.03466105]
[1732820232307,0.0008614,95414.0,95413.0,0.02154764]
[1732820232744,0.0008614,95414.0,95413.0,0.01904711]
[1732820232956,0.2326674,95414.0,95413.0,0.15978468]
[1732820233183,0.2326674,95414.0,95413.0,0.00855658]
[1732820233652,0.2326674,95414.0,95413.0,0.002]
[1732820234056,0.2326674,95414.0,95409.0,0.14073757]
[1732820234057,0.104808,95412.0,95411.0,0.09384118]
[1732820234295,0.10481,95410.0,95409.0,0.14073757]
[1732820234509,0.10481,95410.0,95409.0,0.14729551]
[1732820235172,0.10481,95410.0,95409.0,0.00655794]
[1732820236999,0.104811,95409.0,95408.0,0.18765009]
[1732820237204,0.104811,95409.0,95408.0,0.19420803]
[1732820238133,0.104811,95409.0,95408.0,0.19482443]
[1732820239188,0.104811,95409.0,95408.0,0.00717434]
[1732820240034,0.106811,95409.0,95408.0,0.00717434]
[1732820242233,0.106811,95409.0,95408.0,0.24173696]
[1732820243103,0.1076726,95409.0,95408.0,0.24173696]
[1732820247506,0.1076726,95409.0,95408.0,0.24190381]
[1732820248173,0.1076726,95409.0,95408.0,0.0006164]
[1732820249467,0.1877726,95409.0,95408.0,0.0006164]
[1732820252970,0.1877726,95409.0,95408.0,0.14144847]
[1732820253405,0.2348726,95409.0,95408.0,0.14144847]
[1732820254081,0.2578726,95409.0,95408.0,0.14144847]
[1732820254307,0.2578726,95409.0,95408.0,0.0006164]
[1732820256271,0.2578726,95409.0,95408.0,0.0944963]
[1732820258946,0.1076726,95409.0,95408.0,0.0944963]
[1732820261568,0.1076726,95409.0,95408.0,0.10105457]
[1732820262221,0.1076726,95409.0,95408.0,0.00717467]
[1732820263606,0.2378726,95409.0,95408.0,0.00717467]
[1732820264519,0.2378726,95409.0,95408.0,0.0006164]
[1732820264755,0.2378726,95409.0,95408.0,0.00717467]
[1732820270730,0.1884726,95409.0,95408.0,0.00717467]
[1732820271394,0.1884726,95409.0,95408.0,0.0006164]
[1732820271637,0.1884726,95409.0,95408.0,0.10102445]
[1732820271878,0.1884726,95409.0,95408.0,0.11414099]
[1732820273600,0.1884726,95409.0,95408.0,0.02029121]
[1732820274035,0.47181728,95409.0,95408.0,0.02029121]
[1732820274265,0.47181728,95409.0,95408.0,0.11417387]
[1732820274509,0.47181728,95409.0,95408.0,0.02029121]
[1732820276565,0.47181728,95409.0,95408.0,0.16106588]
[1732820277018,0.2576726,95409.0,95408.0,0.02029121]
[1732820277235,0.2576726,95409.0,95408.0,0.25309077]
[1732820277450,0.2576726,95409.0,95408.0,0.06539121]
[1732820277905,0.2556726,95409.0,95408.0,0.06539121]
[1732820278128,0.2576726,95409.0,95408.0,0.06539121]
[1732820278350,0.2576726,95409.0,95408.0,0.07588307]
[1732820278556,0.2556726,95409.0,95408.0,0.07588307]
[1732820278772,0.2556726,95409.0,95408.0,0.06539068]
[1732820278995,0.2556726,95409.0,95408.0,0.05227414]
[1732820279892,0.2576726,95409.0,95408.0,0.05227414]
[1732820280798,0.2576726,95409.0,95408.0,0.06276666]
[1732820281022,0.2576726,95409.0,95408.0,0.05227414]
[1732820282601,0.2576726,95409.0,95408.0,0.00717414]
[1732820284249,0.2576726,95409.0,95408.0,0.0006164]
[1732820284480,0.2576726,95409.0,95408.0,0.24217128]
[1732820285139,0.2576726,95409.0,95408.0,0.23561306]
[1732820286885,0.2576726,95409.0,95408.0,0.23561468]
[1732820287343,0.2576726,95409.0,95408.0,0.0006164]
[1732820289977,0.2576726,95409.0,95408.0,0.05427465]
[1732820290661,0.2556726,95409.0,95408.0,0.05427465]
[1732820290880,0.2556726,95409.0,95408.0,0.0477164]
[1732820291119,0.2556726,95409.0,95408.0,0.05427445]
[1732820291120,0.2576726,95409.0,95408.0,0.05427445]
[1732820291586,0.2576726,95409.0,95408.0,0.05527445]
[1732820293383,0.2556726,95409.0,95408.0,0.33719377]
[1732820293602,0.2566726,95409.0,95408.0,0.33719377]
[1732820294035,0.2566726,95409.0,95408.0,0.33063572]
[1732820294252,0.2566726,95409.0,95408.0,0.0487164]
[1732820306749,0.2566726,95409.0,95408.0,0.0016164]
[1732820310572,0.2566726,95409.0,95408.0,0.28341813]
[1732820311053,0.0018616,95409.0,95408.0,0.33042157]
[1732820311270,0.0018616,95409.0,95408.0,0.1261164]
[1732820312351,0.0018616,95409.0,95408.0,0.13267385]
[1732820312768,0.0008616,95409.0,95408.0,0.13267385]
[1732820313248,0.0008616,95409.0,95408.0,0.13167385]
[1732820313437,0.1056726,95409.0,95408.0,0.13267385]
[1732820313688,0.1056726,95409.0,95408.0,0.13167385]
[1732820313901,0.1056726,95409.0,95408.0,0.05417385]
[1732820314109,0.1056726,95409.0,95408.0,0.06317385]
[1732820314378,0.1056726,95409.0,95408.0,0.01617385]
[1732820314801,0.1056726,95409.0,95408.0,0.0096164]
[1732820316110,0.1056726,95409.0,95408.0,0.0156164]
[1732820316756,0.1056726,95409.0,95408.0,0.0006164]
[1732820317220,0.1056726,95409.0,95408.0,0.0116164]
[1732820317676,0.1056726,95409.0,95408.0,0.0086164]
[1732820317906,0.1056726,95409.0,95408.0,0.0006164]
[1732820318375,0.1056726,95409.0,95408.0,0.0026164]
[1732820323594,0.1056726,95409.0,95408.0,0.0488164]
[1732820324884,0.1056726,95409.0,95408.0,0.0026164]
[1732820340490,0.1056726,95409.0,95408.0,0.00917445]
[1732820344324,0.1056726,95409.0,95408.0,0.0026164]
[1732820344539,0.1056726,95409.0,95408.0,0.00917433]
[1732820344761,0.1056726,95409.0,95408.0,0.0026164]
[1732820345004,0.1056726,95409.0,95408.0,0.00917436]
[1732820345458,0.0008616,95409.0,95408.0,0.41929102]
[1732820345683,0.0008616,95409.0,95408.0,0.14786643]
[1732820347049,0.0008616,95409.0,95408.0,0.14586643]
[1732820347469,0.0008616,95409.0,95408.0,0.15086643]
[1732820347685,0.0008616,95409.0,95408.0,0.14586643]
[1732820348144,0.1056726,95409.0,95408.0,0.15486643]
[1732820348694,0.1056726,95409.0,95408.0,0.15286643]
[1732820348907,0.1056726,95409.0,95408.0,0.15586643]
[1732820351243,0.1056726,95409.0,95408.0,0.14537384]
[1732820354501,0.1056726,95409.0,95408.0,0.1388164]
[1732820354707,0.1056726,95409.0,95408.0,0.14537384]
[1732820357015,0.1056726,95409.0,95408.0,0.06367384]
[1732820360345,0.1056726,95409.0,95408.0,0.0571164]
[1732820361413,0.1056726,95409.0,95408.0,0.06367388]
[1732820363159,0.1056726,95409.0,95408.0,0.0571164]
[1732820364053,0.1056726,95409.0,95408.0,0.06367388]
[1732820364930,0.0008616,95409.0,95408.0,0.06367388]
[1732820365136,0.0008616,95409.0,95408.0,0.0571164]
[1732820365358,0.0008616,95409.0,95408.0,0.06367388]
[1732820365359,0.1056726,95409.0,95408.0,0.06367388]
[1732820369128,0.10557903,95409.0,95408.0,0.06367388]
[1732820373385,0.10557903,95409.0,95408.0,0.07416586]
[1732820375366,0.10557903,95409.0,95408.0,0.02766586]
[1732820375590,0.10557903,95409.0,95408.0,0.02766593]
[1732820378459,0.10557903,95409.0,95408.0,0.2991597]
[1732820379187,0.10557903,95409.0,95408.0,0.01717391]
[1732820380333,0.10557903,95409.0,95408.0,0.2991597]
[1732820380550,0.10557903,95409.0,95408.0,0.01717391]
[1732820381692,0.10557903,95409.0,95408.0,0.01803581]
[1732820383837,0.10557903,95409.0,95408.0,0.01103581]
[1732820384278,0.10557903,95409.0,95408.0,0.01303581]
[1732820384495,0.10557903,95409.0,95408.0,0.01103581]
[1732820384986,0.10557903,95409.0,95408.0,0.01303581]
[1732820385648,0.10557903,95409.0,95408.0,0.01003581]
[1732820385868,0.10557903,95409.0,95408.0,0.2921863]
[1732820386082,0.10557903,95409.0,95408.0,0.01003613]
[1732820387404,0.10557903,95409.0,95408.0,0.29215888]
[1732820389236,0.10557903,95409.0,95408.0,0.29215881]
[1732820389453,0.10557903,95409.0,95408.0,0.01003606]
[1732820390089,0.12293053,95409.0,95408.0,0.01003606]
[1732820396627,0.12293053,95409.0,95408.0,0.00803606]
[1732820396841,0.12493053,95409.0,95408.0,0.00803606]
[1732820397060,0.12593053,95409.0,95408.0,0.00803606]
[1732820397299,0.12493053,95409.0,95408.0,0.00803606]
[1732820397836,0.12493053,95409.0,95408.0,0.01003606]
[1732820398052,0.12293053,95409.0,95408.0,0.01003606]
[1732820403823,0.12293053,95409.0,95408.0,0.02052848]
[1732820404497,0.12293053,95409.0,95408.0,0.30277337]
[1732820405256,0.12293053,95409.0,95408.0,0.28572319]
[1732820405498,0.12293053,95409.0,95408.0,0.29621565]
[1732820405729,0.12293053,95409.0,95408.0,0.30277344]
[1732820406635,0.12293053,95409.0,95408.0,0.02052855]
[1732820407766,0.12293053,95409.0,95408.0,0.01003609]
[1732820408241,0.20223053,95409.0,95408.0,0.01003609]
[1732820408476,0.20223053,95409.0,95408.0,0.01003632]
[1732820411966,0.20223053,95409.0,95408.0,0.01003633]
[1732820416051,0.20223053,95409.0,95408.0,0.00803633]
[1732820416269,0.20323053,95409.0,95408.0,0.00803633]
[1732820417592,0.12493053,95409.0,95408.0,0.00803633]
[1732820417815,0.12593053,95409.0,95408.0,0.00803633]
[1732820418053,0.12393053,95409.0,95408.0,0.00803633]
[1732820418312,0.12593053,95409.0,95408.0,0.00803633]
[1732820421915,0.12593053,95409.0,95408.0,0.00803627]
[1732820422131,0.12593053,95409.0,95408.0,0.05683627]
[1732820422342,0.12593053,95409.0,95408.0,0.41721446]
[1732820422567,0.12593053,95409.0,95408.0,0.13503627]
[1732820423731,0.12593053,95409.0,95408.0,0.1284783]
[1732820423951,0.12493053,95409.0,95408.0,0.1284783]
[1732820424161,0.12493053,95409.0,95408.0,0.1334783]
[1732820424396,0.12293053,95409.0,95408.0,0.1334783]
[1732820424855,0.12493053,95409.0,95408.0,0.1334783]
[1732820425335,0.12293053,95409.0,95408.0,0.1334783]
[1732820425556,0.12293053,95409.0,95408.0,0.1344783]
[1732820427350,0.12293053,95409.0,95408.0,0.0562783]
[1732820429185,0.12293053,95409.0,95408.0,0.06283593]
[1732820441345,0.12293053,95409.0,95408.0,0.0562783]
[1732820442073,0.12293053,95409.0,95408.0,0.0074783]
[1732820450003,0.12293053,95409.0,95408.0,0.28950387]
[1732820450234,0.12293053,95409.0,95408.0,0.0074783]
[1732820453733,0.47437574,95409.0,95408.0,0.0074783]
[1732820453950,0.81255785,95409.0,95408.0,0.0074783]
[1732820454615,0.81255785,95409.0,95408.0,0.0064783]
[1732820455053,0.81355785,95409.0,95408.0,0.0014783]
[1732820455934,0.81355785,95409.0,95408.0,0.0114383]
[1732820456165,0.81255785,95409.0,95408.0,0.0114383]
[1732820456609,0.81655785,95409.0,95408.0,0.0114383]
[1732820457114,0.81255785,95409.0,95408.0,0.0114383]
[1732820457559,0.81855785,95409.0,95408.0,0.0114383]
[1732820458018,0.81855785,95409.0,95408.0,0.0124383]
[1732820459622,0.78657521,95409.0,95408.0,0.0124383]
[1732820459850,0.81850546,95409.0,95408.0,0.0124383]
[1732820460271,0.78657521,95409.0,95408.0,0.0124383]
[1732820465092,0.52907574,95409.0,95408.0,0.0124383]
[1732820465343,0.27893053,95409.0,95408.0,0.0124383]
[1732820466044,0.27293053,95409.0,95408.0,0.0124383]
[1732820466268,0.27893053,95409.0,95408.0,0.0124383]
[1732820466483,0.27893053,95409.0,95408.0,0.0114383]
[1732820466694,0.27293053,95409.0,95408.0,0.0114383]
[1732820467136,0.27593053,95409.0,95408.0,0.0114383]
[1732820467792,0.35363053,95409.0,95408.0,0.0114383]
[1732820468748,0.35063053,95409.0,95408.0,0.0114383]
[1732820469217,0.35363053,95409.0,95408.0,0.0114383]
[1732820475863,0.27593053,95409.0,95408.0,0.0114383]
[1732820478585,0.27293053,95409.0,95408.0,0.0114383]
[1732820479039,0.27593053,95409.0,95408.0,0.0114383]
[1732820479464,0.27293053,95409.0,95408.0,0.0114383]
[1732820479909,0.27593053,95409.0,95408.0,0.0114383]
[1732820481281,0.27293053,95409.0,95408.0,0.0114383]
[1732820481493,0.27593053,95409.0,95408.0,0.0114383]
[1732820482129,0.27293053,95409.0,95408.0,0.0114383]
[1732820482346,0.27593053,95409.0,95408.0,0.0114383]
[1732820485395,0.27293053,95409.0,95408.0,0.0114383]
[1732820485836,0.27593053,95409.0,95408.0,0.0114383]
[1732820487380,0.27293053,95409.0,95408.0,0.0114383]
[1732820487865,0.27593053,95409.0,95408.0,0.0114383]
[1732820488310,0.27293053,95409.0,95408.0,0.0114383]
[1732820488515,0.27593053,95409.0,95408.0,0.0114383]
[1732820488690,0.30790677,95409.0,95408.0,0.0114383]
[1732820489030,0.30490677,95409.0,95408.0,0.0114383]
[1732820490488,0.30790677,95409.0,95408.0,0.0114383]
[1732820490864,0.30490677,95409.0,95408.0,0.0114383]
[1732820491357,0.30790677,95409.0,95408.0,0.0114383]
[1732820491805,0.01811953,95409.0,95408.0,0.2500513]
[1732820492027,0.01811953,95409.0,95408.0,0.14773883]
[1732820492262,0.02111953,95409.0,95408.0,0.15557048]
[1732820492689,0.02111953,95409.0,95408.0,0.17261999]
[1732820493396,0.02111953,95409.0,95408.0,0.16478834]
[1732820493622,0.02111953,95409.0,95408.0,0.27660134]
[1732820493959,0.02111953,95409.0,95408.0,0.38027059]
[1732820494192,0.01811953,95409.0,95408.0,0.37944655]
[1732820494382,0.01811953,95409.0,95408.0,0.38726897]
[1732820494648,0.01811953,95409.0,95408.0,0.38026897]
[1732820494649,0.02011953,95409.0,95408.0,0.38026897]
[1732820494876,0.02011953,95409.0,95408.0,0.3933827]
[1732820495092,0.01811953,95409.0,95408.0,0.3933827]
[1732820495946,0.01811953,95409.0,95408.0,0.4033827]
[1732820497748,0.01811953,95409.0,95408.0,0.40338094]
[1732820498439,0.01811953,95409.0,95408.0,0.39026725]
[1732820499339,0.01811953,95409.0,95408.0,0.40338076]
[1732820499553,0.01811953,95409.0,95408.0,0.81844513]
[1732820500023,0.01811953,95409.0,95408.0,0.40338076]
[1732820500242,0.01811953,95409.0,95408.0,0.39838076]
[1732820501159,0.01811953,95409.0,95408.0,0.39837929]
[1732820502976,0.01759547,95409.0,95408.0,0.39837929]
[1732820508037,0.01759547,95409.0,95408.0,0.39924119]
[1732820508270,0.7009646,95575.0,95408.0,0.39924119]
[1732820508271,0.00749947,95476.0,95426.0,0.00250053]
[1732820508497,0.209509,95461.0,95443.0,0.11727453]
[1732820508713,0.209509,95461.0,95443.0,0.35197388]
[1732820508930,0.104761,95455.0,95443.0,0.35011974]
[1732820509146,0.209519,95457.0,95443.0,0.35667498]
[1732820509420,0.209519,95457.0,95443.0,0.36716263]
[1732820509421,0.104759,95457.0,95443.0,0.36716263]
[1732820509643,0.209509,95461.0,95443.0,0.60080709]
[1732820509882,0.10476,95457.0,95443.0,0.59031944]
[1732820510360,0.0098023,95463.0,95443.0,0.36467498]
[1732820510603,0.0098023,95463.0,95448.0,0.114769]
[1732820510822,0.0017242,95465.0,95448.0,0.24429408]
[1732820511044,0.0017242,95465.0,95448.0,0.36534009]
[1732820511722,0.0017242,95465.0,95448.0,0.39963394]
[1732820511933,0.0017242,95465.0,95448.0,0.36784062]
[1732820512375,0.0017242,95465.0,95448.0,0.38494782]
[1732820513016,0.0017242,95465.0,95448.0,0.39394782]
[1732820513452,0.0017242,95465.0,95448.0,0.38494782]
[1732820513699,0.0017242,95465.0,95448.0,0.38994782]
[1732820514130,0.0017242,95465.0,95448.0,0.39494782]
[1732820515014,0.0017242,95465.0,95448.0,0.39493277]
[1732820516380,0.0017242,95465.0,95448.0,0.40678733]
[1732820518251,0.0017242,95465.0,95448.0,0.3990182]
[1732820518463,0.0017242,95465.0,95448.0,0.42678418]
[1732820518682,0.0017242,95465.0,95464.0,0.11725153]
[1732820518908,0.0017242,95465.0,95464.0,0.36359206]
[1732820519141,0.0017242,95465.0,95464.0,0.38260615]
[1732820520240,0.0017242,95465.0,95464.0,0.42434989]
[1732820520653,0.0017242,95465.0,95464.0,0.38260615]
[1732820520913,0.0017242,95465.0,95464.0,0.38887986]
[1732820521131,0.0017242,95465.0,95464.0,0.39787003]
[1732820521568,0.0017242,95465.0,95464.0,0.39759632]
[1732820523506,0.0017242,95465.0,95464.0,0.27299632]
[1732820523924,0.0017242,95465.0,95464.0,0.27926401]
[1732820524110,0.0017242,95465.0,95464.0,0.26523626]
[1732820524379,0.00234049,95465.0,95464.0,0.25923626]
[1732820524866,0.00234049,95465.0,95464.0,0.26123626]
[1732820525984,0.00234049,95465.0,95464.0,0.25023626]
[1732820526164,0.00234049,95465.0,95464.0,0.25923626]
[1732820526427,0.00234049,95465.0,95464.0,0.26223626]
[1732820526660,0.00234049,95465.0,95464.0,0.25323626]
[1732820526876,0.00234049,95465.0,95464.0,0.25923626]
[1732820527333,0.00234049,95465.0,95464.0,0.25423626]
[1732820527557,0.00234049,95465.0,95464.0,0.26323626]
[1732820527746,0.00234049,95465.0,95464.0,0.25423626]
[1732820528017,0.00234049,95465.0,95464.0,0.25023626]
[1732820528243,0.00234049,95465.0,95464.0,0.66187205]
[1732820528918,0.00234049,95465.0,95464.0,0.25023626]
[1732820529386,0.00234049,95465.0,95464.0,0.26323626]
[1732820529602,0.00234049,95465.0,95464.0,0.25423626]
[1732820529818,0.00234049,95465.0,95464.0,0.25923626]
[1732820530262,0.00234049,95465.0,95464.0,0.67487205]
[1732820530702,0.0004,95469.0,95468.0,0.114747]
[1732820530923,0.0004,95469.0,95468.0,0.25208598]
[1732820531155,0.0004,95469.0,95468.0,0.25650719]
[1732820531384,0.0004,95469.0,95468.0,0.25023226]
[1732820533996,0.0004,95469.0,95468.0,0.25923226]
[1732820534450,0.0004,95469.0,95468.0,0.25323226]
[1732820534695,0.005,95480.0,95470.0,0.11724453]
[1732820534903,0.005,95480.0,95470.0,0.2520827]
[1732820535146,0.005,95480.0,95470.0,0.25022926]
[1732820535667,0.005,95480.0,95470.0,0.57393503]
[1732820535905,0.005,95480.0,95479.0,0.104735]
[1732820536147,0.005,95480.0,95479.0,0.24957313]
[1732820536404,0.005,95480.0,95479.0,0.25022026]
[1732820537585,0.005,95480.0,95479.0,0.25922026]
[1732820538025,0.005,95480.0,95479.0,0.26322026]
[1732820538479,0.0051848,95480.0,95479.0,0.27359781]
[1732820538694,0.0008619,95495.0,95487.0,0.104726]
[1732820538934,0.0008619,95495.0,95487.0,0.23771073]
[1732820539154,0.0008619,95495.0,95487.0,0.24771073]
[1732820539367,0.104719,95494.0,95487.0,0.24771073]
[1732820539591,0.0008619,95495.0,95487.0,0.24771073]
[1732820540019,0.1055799,95495.0,95487.0,0.24771073]
[1732820540272,0.1055789,95495.0,95487.0,0.25871073]
[1732820540497,0.1055799,95495.0,95487.0,0.25871073]
[1732820540727,0.0008619,95495.0,95487.0,0.25871073]
[1732820540921,0.1055799,95495.0,95487.0,0.25871073]
[1732820541130,0.0008619,95495.0,95487.0,0.15398473]
[1732820541346,0.1055799,95495.0,95487.0,0.25871073]
[1732820541591,0.0008619,95495.0,95487.0,0.25871073]
[1732820541812,0.104719,95494.0,95487.0,0.25871073]
[1732820541954,0.0008619,95495.0,95487.0,0.24560659]
[1732820542370,0.1055789,95495.0,95487.0,0.24560659]
[1732820542585,0.0008619,95495.0,95487.0,0.24560659]
[1732820542782,0.0008619,95495.0,95487.0,0.14088059]
[1732820542984,0.104719,95493.0,95487.0,0.24560659]
[1732820543252,0.0008619,95495.0,95487.0,0.14088059]
[1732820543473,0.104721,95492.0,95487.0,0.24560659]
[1732820543601,0.104722,95491.0,95487.0,0.24560659]
[1732820543807,0.104722,95491.0,95487.0,0.14088059]
[1732820544034,0.0008619,95495.0,95487.0,0.14088059]
[1732820544231,0.0008619,95495.0,95487.0,0.24560511]
[1732820545097,0.0008619,95495.0,95487.0,0.25188364]
[1732820546126,0.0008619,95495.0,95487.0,0.24560511]
[1732820547335,0.1055789,95495.0,95487.0,0.25188364]
[1732820547538,0.0008619,95495.0,95487.0,0.22857121]
[1732820547788,0.0008619,95495.0,95487.0,0.25188679]
[1732820548187,0.1055789,95495.0,95487.0,0.25188679]
[1732820548415,0.0008619,95495.0,95487.0,0.25188679]
[1732820548633,0.0008619,95495.0,95487.0,0.24810523]
[1732820549733,0.0008619,95495.0,95487.0,0.23762308]
[1732820549937,0.0008619,95495.0,95487.0,0.24810523]
[1732820550139,0.0008619,95495.0,95487.0,0.2543879]
[1732820550345,0.0008619,95495.0,95487.0,0.24810523]
[1732820552433,0.0008619,95495.0,95487.0,0.29470523]
[1732820552867,0.0008619,95495.0,95487.0,0.30508278]
[1732820553076,0.0008619,95495.0,95487.0,0.60868584]
[1732820553512,0.0008619,95495.0,95487.0,0.29470523]
[1732820553726,0.0008619,95495.0,95487.0,0.29270523]
[1732820553938,0.0008619,95495.0,95487.0,0.28370523]
[1732820554156,0.0008619,95495.0,95487.0,0.36100523]
[1732820554823,6.798e-05,95488.0,95487.0,0.36100523]
[1732820555264,6.798e-05,95488.0,95487.0,0.29270523]
[1732820555736,6.798e-05,95488.0,95487.0,0.29570523]
[1732820556178,6.798e-05,95488.0,95487.0,0.29270523]
[1732820556610,6.798e-05,95488.0,95487.0,0.29870523]
[1732820556833,6.798e-05,95488.0,95487.0,0.37600523]
[1732820557047,6.798e-05,95488.0,95487.0,0.38600523]
[1732820558097,6.798e-05,95488.0,95487.0,0.39600523]
[1732820558714,6.798e-05,95488.0,95487.0,0.41900523]
[1732820558926,6.798e-05,95488.0,95487.0,0.45380067]
[1732820559540,6.798e-05,95488.0,95487.0,0.44480067]
[1732820559974,6.798e-05,95488.0,95487.0,0.94381269]
[1732820560185,0.0008619,95495.0,95488.0,0.16022553]
[1732820560417,0.0008619,95495.0,95488.0,0.44116417]
[1732820560637,0.0008619,95495.0,95488.0,0.43931128]
[1732820561305,0.0008619,95495.0,95488.0,0.42227779]
[1732820561524,0.0008619,95495.0,95488.0,0.43930649]
[1732820561977,0.0008619,95495.0,95488.0,0.44130649]
[1732820564774,0.0008619,95495.0,95488.0,0.42427779]
[1732820564990,0.0008619,95495.0,95488.0,0.44130649]
[1732820565629,0.0008619,95495.0,95488.0,0.75615696]
[1732820566489,0.0008619,95495.0,95488.0,0.44130649]
[1732820568275,0.0008619,95495.0,95488.0,0.40599944]
[1732820569175,0.0021224,95489.0,95488.0,0.40599944]
[1732820571274,0.0021224,95489.0,95488.0,0.40399944]
[1732820571497,0.0021224,95489.0,95488.0,0.40499944]
[1732820571717,0.0021224,95489.0,95488.0,0.40599944]
[1732820572174,0.0021224,95489.0,95488.0,0.40499944]
[1732820572383,0.0021224,95489.0,95488.0,0.40599944]
[1732820572603,0.0021224,95489.0,95488.0,0.40599897]
[1732820575456,0.0021224,95489.0,95488.0,0.40599896]
[1732820576958,0.0021224,95489.0,95488.0,0.43537912]
[1732820578465,0.0021224,95489.0,95488.0,0.46618971]
[1732820581235,0.0021224,95489.0,95488.0,0.4661896]
[1732820581455,0.0021224,95489.0,95488.0,0.4679118]
[1732820581663,0.0021224,95489.0,95488.0,0.46646981]
[1732820581871,0.0021224,95489.0,95488.0,0.48349792]
[1732820583474,0.0008619,95495.0,95494.0,0.15021853]
[1732820583701,0.0008619,95495.0,95494.0,0.33543082]
[1732820583919,0.0008619,95495.0,95494.0,0.41427797]
[1732820584412,0.0008619,95495.0,95494.0,0.39869185]
[1732820584636,0.0008619,95495.0,95494.0,0.42208423]
[1732820584856,0.0008619,95495.0,95494.0,0.42308423]
[1732820585506,0.0008619,95495.0,95494.0,0.42408423]